bitfinex/quotes_BTCUSD_20240915
["timestamp","ask_amount","ask_price","bid_price","bid_amount"]
[1726433804007,0.00223529,59959.0,59958.0,0.32390464]
[1726433806636,0.00223529,59959.0,59958.0,0.37381466]
[1726433807299,0.00223529,59959.0,59958.0,0.37329365]
[1726433807511,0.00223529,59959.0,59958.0,0.3729262]
[1726433807721,0.00223529,59959.0,59958.0,0.37292492]
[1726433809948,0.00223529,59959.0,59958.0,0.32301618]
[1726433810167,0.00223529,59959.0,59958.0,0.37292481]
[1726433810420,0.0039681,59966.0,59958.0,0.37292481]
[1726433810421,0.0039681,59966.0,59959.0,0.1]
[1726433810634,0.0039681,59966.0,59965.0,0.12644317]
[1726433811279,0.0039681,59966.0,59965.0,0.35091076]
[1726433811499,0.0039681,59966.0,59965.0,0.34757575]
[1726433811704,0.00384783,59966.0,59965.0,0.34757575]
[1726433811918,0.00384783,59966.0,59965.0,0.37252414]
[1726433812326,0.00384783,59966.0,59965.0,0.29767898]
[1726433812518,0.00384783,59966.0,59965.0,0.34955009]
[1726433812795,0.00384783,59966.0,59965.0,0.44165009]
[1726433813427,0.00384783,59966.0,59965.0,0.56658565]
[1726433813661,0.00384783,59966.0,59965.0,0.56858565]
[1726433813891,0.00384783,59966.0,59965.0,0.49377898]
[1726433814170,0.00384783,59966.0,59965.0,0.59352121]
[1726433815511,0.00384783,59966.0,59965.0,0.49377898]
[1726433815735,0.00384783,59966.0,59965.0,0.50584359]
[1726433816370,0.0001,59979.0,59977.0,0.12644317]
[1726433817758,0.0201,59979.0,59977.0,0.12844317]
[1726433818193,0.0081,59979.0,59977.0,0.12744317]
[1726433818423,0.0001,59979.0,59977.0,0.12644317]
[1726433818604,0.0061,59979.0,59977.0,0.12744317]
[1726433819771,0.0061,59979.0,59978.0,0.37367026]
[1726433819984,0.0051,59979.0,59978.0,0.42017312]
[1726433820197,0.0001,59979.0,59978.0,0.42017312]
[1726433820410,0.0031,59979.0,59978.0,0.42017312]
[1726433820896,0.0001,59979.0,59978.0,0.42017312]
[1726433821104,0.0001,59979.0,59978.0,0.42617312]
[1726433821369,0.0011,59979.0,59978.0,0.42617312]
[1726433821599,0.0011,59979.0,59978.0,0.37633581]
[1726433821830,0.0001,59979.0,59978.0,0.38033581]
[1726433822046,0.0001,59979.0,59978.0,0.38933581]
[1726433822047,0.0011,59979.0,59978.0,0.38933581]
[1726433823192,0.0011,59979.0,59978.0,0.37933581]
[1726433823413,0.0011,59979.0,59978.0,0.38933581]
[1726433823414,0.0021,59979.0,59978.0,0.38933581]
[1726433823631,0.0011,59979.0,59978.0,0.37933581]
[1726433823845,0.001923,59979.0,59978.0,0.37933581]
[1726433824058,0.002923,59979.0,59978.0,0.2191]
[1726433824293,0.001923,59979.0,59978.0,0.2101]
[1726433824541,0.002923,59979.0,59978.0,0.2201]
[1726433826629,0.002923,59979.0,59978.0,0.021]
[1726433829812,0.00209811,59979.0,59978.0,0.021]
[1726433834934,0.18167724,59979.0,59978.0,0.021]
[1726433835139,0.8567618,59979.0,59978.0,0.021]
[1726433835812,0.8567618,59979.0,59978.0,0.011]
[1726433836046,0.9368618,59979.0,59978.0,0.011]
[1726433836463,0.166734,59976.0,59965.0,0.1]
[1726433836670,0.166736,59975.0,59965.0,0.1121335]
[1726433836880,0.17489745,59975.0,59965.0,0.0121335]
[1726433837115,0.17489745,59975.0,59966.0,0.001644]
[1726433837343,0.16931648,59974.0,59966.0,0.001644]
[1726433837569,0.00816145,59975.0,59966.0,0.001644]
[1726433837789,0.00815883,59973.0,59966.0,0.001644]
[1726433837996,0.00816014,59974.0,59966.0,0.001644]
[1726433838216,0.00815845,59972.0,59966.0,0.001644]
[1726433838428,0.00815883,59973.0,59966.0,0.001644]
[1726433838647,0.00815845,59971.0,59966.0,0.001644]
[1726433838865,0.166736,59975.0,59966.0,0.003644]
[1726433839102,0.00815845,59970.0,59966.0,0.003644]
[1726433839333,0.166736,59975.0,59966.0,0.003644]
[1726433839334,0.00816014,59974.0,59966.0,0.003644]
[1726433839555,0.00815845,59969.0,59966.0,0.003644]
[1726433839937,0.166736,59975.0,59966.0,0.006644]
[1726433839938,0.00815373,59968.0,59966.0,0.003644]
[1726433840501,0.333463,59977.0,59966.0,0.001644]
[1726433840502,0.00815451,59967.0,59966.0,0.001644]
[1726433840942,0.166737,59975.0,59966.0,0.004644]
[1726433841157,0.166737,59975.0,59966.0,0.005644]
[1726433841387,0.00812223,59974.0,59966.0,0.009644]
[1726433841790,0.00812223,59974.0,59966.0,0.005644]
[1726433842000,0.00812223,59974.0,59966.0,0.010644]
[1726433842676,0.00812223,59974.0,59966.0,0.006644]
[1726433843177,0.00812223,59974.0,59966.0,0.012644]
[1726433843402,0.00812223,59974.0,59966.0,0.006644]
[1726433843647,0.01512223,59974.0,59966.0,0.007644]
[1726433843888,0.00812223,59974.0,59966.0,0.006644]
[1726433844336,0.01512223,59974.0,59966.0,0.002644]
[1726433844551,0.01812223,59974.0,59966.0,0.002644]
[1726433845037,0.01512223,59974.0,59966.0,0.002644]
[1726433845522,0.017,59974.0,59966.0,0.003644]
[1726433854475,0.12644317,59969.0,59966.0,0.003644]
[1726433854700,0.580474,59967.0,59966.0,0.003644]
[1726433854897,0.16678,59959.0,59958.0,0.001646]
[1726433855102,0.96034517,59959.0,59958.0,0.001646]
[1726433855320,1.59698855,59959.0,59958.0,0.001646]
[1726433855799,1.62698855,59959.0,59958.0,0.001646]
[1726433856295,1.62698855,59959.0,59948.0,0.001644]
[1726433856296,0.62685917,59950.0,59948.0,0.001644]
[1726433856533,0.96047017,59950.0,59948.0,0.001644]
[1726433856759,0.97006093,59950.0,59948.0,0.001644]
[1726433857658,0.98206093,59950.0,59949.0,0.002646]
[1726433857926,0.98206093,59950.0,59949.0,0.001646]
[1726433858144,0.76065602,59950.0,59949.0,0.001646]
[1726433858373,0.77465602,59950.0,59949.0,0.001646]
[1726433858602,0.77492506,59950.0,59949.0,0.001646]
[1726433858823,0.77479259,59950.0,59949.0,0.001646]
[1726433861450,0.77483402,59950.0,59949.0,0.001646]
[1726433861897,0.98200185,59950.0,59949.0,0.001646]
[1726433862134,0.64839085,59950.0,59949.0,0.001646]
[1726433863030,0.27477985,59950.0,59949.0,0.001646]
[1726433863238,0.27477985,59950.0,59949.0,0.002646]
[1726433863239,0.30277985,59950.0,59949.0,0.002646]
[1726433863708,0.62239085,59950.0,59949.0,0.001646]
[1726433863935,0.63239085,59950.0,59949.0,0.002646]
[1726433864162,0.29873842,59950.0,59949.0,0.002646]
[1726433864389,0.29871199,59950.0,59949.0,0.002646]
[1726433864610,0.63232299,59950.0,59949.0,0.002646]
[1726433864796,0.28471199,59950.0,59949.0,0.002646]
[1726433865044,0.62832299,59950.0,59949.0,0.002646]
[1726433865698,1.25961297,59950.0,59949.0,0.002646]
[1726433865925,1.26161297,59950.0,59949.0,0.002646]
[1726433866152,1.25961297,59950.0,59949.0,0.002646]
[1726433866625,1.26161297,59950.0,59949.0,0.002646]
[1726433867551,1.25961297,59950.0,59949.0,0.002646]
[1726433872305,0.92600197,59950.0,59949.0,0.002646]
[1726433873205,0.7995588,59950.0,59949.0,0.002646]
[1726433874283,1.1331698,59950.0,59949.0,0.002646]
[1726433874499,0.7995588,59950.0,59949.0,0.002646]
[1726433883076,0.36774171,59950.0,59949.0,0.002646]
[1726433884192,0.70135271,59950.0,59949.0,0.002646]
[1726433884625,1.16140688,59950.0,59949.0,0.002646]
[1726433884881,1.52701788,59950.0,59949.0,0.002646]
[1726433885796,1.50701788,59950.0,59949.0,0.001646]
[1726433886015,1.68002935,59950.0,59949.0,0.001646]
[1726433886280,1.69402935,59950.0,59949.0,0.002646]
[1726433886503,1.68002935,59950.0,59949.0,0.001646]
[1726433886721,1.69402935,59950.0,59949.0,0.002646]
[1726433886970,1.69402935,59950.0,59949.0,0.001646]
[1726433887200,1.68002935,59950.0,59949.0,0.001646]
[1726433887419,1.69402935,59950.0,59949.0,0.002646]
[1726433887663,1.68002935,59950.0,59949.0,0.001646]
[1726433888080,1.69402935,59950.0,59949.0,0.001646]
[1726433888326,1.7202016,59950.0,59949.0,0.001646]
[1726433888534,1.7062016,59950.0,59949.0,0.001646]
[1726433888968,1.7202016,59950.0,59949.0,0.001646]
[1726433889220,1.6922016,59950.0,59949.0,0.001646]
[1726433889450,1.7202016,59950.0,59949.0,0.001646]
[1726433892346,1.7062016,59950.0,59949.0,0.001646]
[1726433893065,1.59375843,59950.0,59949.0,0.001646]
[1726433893273,1.7202016,59950.0,59949.0,0.001646]
[1726433893489,1.7342016,59950.0,59949.0,0.001646]
[1726433894649,2.2206216,59950.0,59949.0,0.001646]
[1726433894884,2.2346216,59950.0,59949.0,0.001646]
[1726433910927,2.2845574,59950.0,59949.0,0.001646]
[1726433911373,2.2346216,59950.0,59949.0,0.001646]
[1726433912769,2.30952531,59950.0,59949.0,0.001646]
[1726433912981,2.2346216,59950.0,59949.0,0.001646]
[1726433913441,1.29631617,59938.0,59937.0,0.001644]
[1726433913684,1.96597198,59938.0,59937.0,0.001644]
[1726433913911,1.97508363,59938.0,59937.0,0.001644]
[1726433914553,1.52196246,59938.0,59937.0,0.001644]
[1726433914739,1.64840563,59938.0,59937.0,0.001644]
[1726433915001,1.71875956,59938.0,59937.0,0.001644]
[1726433915440,1.73275956,59938.0,59937.0,0.001644]
[1726433915885,1.71875956,59938.0,59937.0,0.001644]
[1726433916156,1.72575956,59938.0,59937.0,0.001644]
[1726433916394,1.73975956,59938.0,59937.0,0.001644]
[1726433916834,1.72575956,59938.0,59937.0,0.001644]
[1726433917119,1.73975956,59938.0,59937.0,0.001644]
[1726433920731,1.73975956,59938.0,59937.0,0.099244]
[1726433921604,1.74175956,59938.0,59937.0,0.099244]
[1726433923120,1.73975956,59938.0,59937.0,0.099244]
[1726433924019,0.70437065,59938.0,59937.0,0.099244]
[1726433925361,0.69037065,59938.0,59937.0,0.099244]
[1726433925572,0.67637065,59938.0,59937.0,0.099244]
[1726433925818,0.68237065,59938.0,59937.0,0.099244]
[1726433926051,0.69037065,59938.0,59937.0,0.099244]
[1726433926535,0.68237065,59938.0,59937.0,0.099244]
[1726433926809,0.42253165,59938.0,59937.0,0.344285]
[1726433927032,0.22253165,59938.0,59937.0,0.47072817]
[1726433927528,0.22253165,59938.0,59937.0,0.49372817]
[1726433927998,0.21342,59938.0,59937.0,0.49372817]
[1726433928470,0.22248125,59938.0,59937.0,0.49372817]
[1726433935489,0.22248125,59938.0,59937.0,0.367285]
[1726433936592,0.21342,59938.0,59937.0,0.367285]
[1726433937015,0.22251638,59938.0,59937.0,0.367285]
[1726433942156,0.22416238,59938.0,59937.0,0.367285]
[1726433942875,0.22416238,59938.0,59937.0,0.344285]
[1726433943096,0.22416238,59938.0,59937.0,0.079844]
[1726433943330,0.22416238,59938.0,59937.0,0.001644]
[1726433945707,0.46346662,59938.0,59937.0,0.001644]
[1726433945942,1.13082262,59938.0,59937.0,0.001644]
[1726433946167,1.22792262,59938.0,59937.0,0.001644]
[1726433946382,1.15545738,59938.0,59937.0,0.001644]
[1726433947249,1.14945738,59938.0,59937.0,0.001644]
[1726433947455,1.15645738,59938.0,59937.0,0.001644]
[1726433947715,1.16945738,59938.0,59937.0,0.001644]
[1726433948160,1.15645738,59938.0,59937.0,0.001644]
[1726433948388,1.14245738,59938.0,59937.0,0.001644]
[1726433948597,1.15645738,59938.0,59937.0,0.001644]
[1726433949047,1.47534914,59938.0,59937.0,0.001644]
[1726433949256,1.48934914,59938.0,59937.0,0.001644]
[1726433949692,1.50234914,59938.0,59937.0,0.001644]
[1726433950140,1.48934914,59938.0,59937.0,0.001644]
[1726433950377,1.50334914,59938.0,59937.0,0.001644]
[1726433950600,1.47534914,59938.0,59937.0,0.001644]
[1726433950819,1.48934914,59938.0,59937.0,0.001644]
[1726433951108,1.50334914,59938.0,59937.0,0.001644]
[1726433951271,1.47534914,59938.0,59937.0,0.001644]
[1726433951501,1.48934914,59938.0,59937.0,0.001644]
[1726433951686,1.50334914,59938.0,59937.0,0.001644]
[1726433954439,1.83702714,59938.0,59937.0,0.001644]
[1726433956463,1.67537119,59938.0,59937.0,0.001644]
[1726433964654,1.24459319,59938.0,59937.0,0.001644]
[1726433967932,0.23916238,59938.0,59937.0,0.168485]
[1726433968170,0.23916238,59938.0,59937.0,0.001644]
[1726433968381,0.40600138,59938.0,59937.0,0.001644]
[1726433968603,0.23916238,59938.0,59937.0,0.001644]
[1726433968965,0.36560555,59938.0,59937.0,0.001644]
[1726433969175,0.23916238,59938.0,59937.0,0.001644]
[1726433970043,0.22516238,59938.0,59937.0,0.001644]
[1726433970324,0.21116238,59938.0,59937.0,0.001644]
[1726433970540,0.22216238,59938.0,59937.0,0.001644]
[1726433970736,0.23616238,59938.0,59937.0,0.001644]
[1726433970957,0.22216238,59938.0,59937.0,0.001644]
[1726433971116,0.22016238,59938.0,59937.0,0.001644]
[1726433972324,0.23016238,59938.0,59937.0,0.001644]
[1726433973390,0.39700138,59938.0,59937.0,0.001644]
[1726433973814,0.23016238,59938.0,59937.0,0.001644]
[1726433980371,0.52602203,59938.0,59937.0,0.001644]
[1726433980630,1.02835836,59938.0,59937.0,0.001644]
[1726433980860,1.82401436,59938.0,59937.0,0.001644]
[1726433981070,1.95887741,59938.0,59937.0,0.001644]
[1726433981330,1.95887741,59938.0,59928.0,0.000822]
[1726433981331,0.62703517,59929.0,59928.0,0.000822]
[1726433981564,1.42871898,59929.0,59928.0,0.000822]
[1726433981791,1.43637917,59929.0,59928.0,0.000822]
[1726433982216,1.43837917,59929.0,59928.0,0.000822]
[1726433982648,1.43637917,59929.0,59928.0,0.000822]
[1726433982839,1.62161938,59929.0,59928.0,0.000822]
[1726433983385,1.60761938,59929.0,59928.0,0.000822]
[1726433983604,1.62161938,59929.0,59928.0,0.000822]
[1726433984518,0.836332,59928.0,59927.0,0.00044019]
[1726433984750,1.17880802,59928.0,59927.0,0.00044019]
[1726433984962,1.55009946,59928.0,59927.0,0.00044019]
[1726433985187,1.54809946,59928.0,59927.0,0.00044019]
[1726433985663,1.56209946,59928.0,59927.0,0.00044019]
[1726433985895,1.19836646,59928.0,59927.0,0.00044019]
[1726433986366,1.21236646,59928.0,59927.0,0.00044019]
[1726433986587,0.89463346,59928.0,59927.0,0.00044019]
[1726433987061,1.22836646,59928.0,59927.0,0.00044019]
[1726433987507,1.42878646,59928.0,59927.0,0.00044019]
[1726433987984,1.44278646,59928.0,59927.0,0.00044019]
[1726433988441,1.42878646,59928.0,59927.0,0.00044019]
[1726433988674,1.76251946,59928.0,59927.0,0.00044019]
[1726433988901,1.76451946,59928.0,59927.0,0.00044019]
[1726433989130,1.77851946,59928.0,59927.0,0.00044019]
[1726433989810,1.76451946,59928.0,59927.0,0.00044019]
[1726433990230,1.75051946,59928.0,59927.0,0.00044019]
[1726433990591,1.76451946,59928.0,59927.0,0.00044019]
[1726433991164,1.77851946,59928.0,59927.0,0.00044019]
[1726433991596,1.79251946,59928.0,59927.0,0.00044019]
[1726433992025,0.834417,59922.0,59921.0,0.00359644]
[1726433992238,1.13209598,59922.0,59921.0,0.00359644]
[1726433992448,1.13970086,59922.0,59921.0,0.00359644]
[1726433993543,1.13970086,59922.0,59921.0,0.00289528]
[1726433993780,1.15370086,59922.0,59921.0,0.00289528]
[1726433994226,1.16770086,59922.0,59921.0,0.00289528]
[1726433996782,1.28447095,59922.0,59921.0,0.00289528]
[1726434000596,1.28447095,59922.0,59921.0,0.00371828]
[1726434002351,0.82426078,59922.0,59921.0,0.00371828]
[1726434002570,0.37372369,59922.0,59921.0,0.00371828]
[1726434004578,0.20684069,59922.0,59921.0,0.00371828]
[1726434006136,0.37372369,59922.0,59921.0,0.00371828]
[1726434010446,0.20684069,59922.0,59921.0,0.00371828]
[1726434011224,0.37372369,59922.0,59921.0,0.00371828]
[1726434011432,0.49049028,59922.0,59921.0,0.00371828]
[1726434012662,0.82425728,59922.0,59921.0,0.00371828]
[1726434013977,1.15802428,59922.0,59921.0,0.00371828]
[1726434014217,1.49179128,59922.0,59921.0,0.00371828]
[1726434014433,1.35844428,59922.0,59921.0,0.00371828]
[1726434014648,1.36009028,59922.0,59921.0,0.00371828]
[1726434014869,1.34609028,59922.0,59921.0,0.00371828]
[1726434015287,1.36009028,59922.0,59921.0,0.00371828]
[1726434015492,1.34609028,59922.0,59921.0,0.00371828]
[1726434015701,1.36009028,59922.0,59921.0,0.00371828]
[1726434017048,1.34609028,59922.0,59921.0,0.00371828]
[1726434017279,1.36009028,59922.0,59921.0,0.00371828]
[1726434017740,1.36331187,59922.0,59921.0,0.00371828]
[1726434017961,1.72707887,59922.0,59921.0,0.00371828]
[1726434018413,1.59405,59918.0,59917.0,0.000822]
[1726434018640,2.10120151,59918.0,59917.0,0.000822]
[1726434018849,2.20120151,59918.0,59917.0,0.000822]
[1726434019081,2.29980151,59918.0,59917.0,0.000822]
[1726434019584,1.168475,59907.0,59906.0,0.001644]
[1726434019812,1.46615398,59907.0,59906.0,0.001644]
[1726434021315,1.46739102,59907.0,59906.0,0.001644]
[1726434021534,1.46839102,59907.0,59906.0,0.001644]
[1726434022796,1.66881102,59907.0,59906.0,0.001644]
[1726434023005,1.83889212,59907.0,59906.0,0.001644]
[1726434023425,1.86508147,59907.0,59906.0,0.001644]
[1726434024103,1.89508147,59907.0,59906.0,0.001644]
[1726434024346,1.99368147,59907.0,59906.0,0.001644]
[1726434024558,1.99568147,59907.0,59906.0,0.001644]
[1726434024787,1.99368147,59907.0,59906.0,0.001644]
[1726434025009,1.99568147,59907.0,59906.0,0.001644]
[1726434025460,1.96949212,59907.0,59906.0,0.001644]
[1726434026564,1.96849212,59907.0,59906.0,0.001644]
[1726434026988,1.98934673,59907.0,59906.0,0.001644]
[1726434027434,1.98134673,59907.0,59906.0,0.001644]
[1726434027663,1.99534673,59907.0,59906.0,0.001644]
[1726434028298,1.98834673,59907.0,59906.0,0.001644]
[1726434028538,2.02853736,59907.0,59906.0,0.001644]
[1726434032423,2.01653736,59907.0,59906.0,0.001644]
[1726434033067,2.03053736,59907.0,59906.0,0.001644]
[1726434036190,2.02853736,59907.0,59906.0,0.001644]
[1726434042084,2.00234673,59907.0,59906.0,0.001644]
[1726434047366,0.90952246,59907.0,59906.0,0.001644]
[1726434047790,1.24337246,59907.0,59906.0,0.001644]
[1726434048409,1.22937246,59907.0,59906.0,0.001644]
[1726434048723,1.21537246,59907.0,59906.0,0.001644]
[1726434048930,1.22937246,59907.0,59906.0,0.001644]
[1726434049155,1.40061267,59907.0,59906.0,0.001644]
[1726434049361,1.38661267,59907.0,59906.0,0.001644]
[1726434049586,1.07476267,59907.0,59906.0,0.001644]
[1726434050055,1.06076267,59907.0,59906.0,0.001644]
[1726434050929,1.06976267,59907.0,59906.0,0.001644]
[1726434051201,1.40361267,59907.0,59906.0,0.001644]
[1726434051434,1.06976267,59907.0,59906.0,0.001644]
[1726434052762,1.40361267,59907.0,59906.0,0.001644]
[1726434053176,1.06976267,59907.0,59906.0,0.001644]
[1726434057218,1.40361267,59907.0,59906.0,0.001644]
[1726434062309,1.76746267,59907.0,59906.0,0.001644]
[1726434062547,1.43361267,59907.0,59906.0,0.001644]
[1726434062765,1.40361267,59907.0,59906.0,0.001644]
[1726434064329,1.45347621,59907.0,59906.0,0.001644]
[1726434065637,1.45354768,59907.0,59906.0,0.001644]
[1726434068580,1.40361267,59907.0,59906.0,0.001644]
[1726434069728,1.5034827,59907.0,59906.0,0.001644]
[1726434070219,1.50349007,59907.0,59906.0,0.001644]
[1726434071120,1.76746267,59907.0,59906.0,0.001644]
[1726434071572,1.86734007,59907.0,59906.0,0.001644]
[1726434073372,1.89352965,59907.0,59906.0,0.001644]
[1726434073603,2.05202965,59907.0,59906.0,0.001644]
[1726434073825,1.32499817,59903.0,59898.0,0.001644]
[1726434074045,1.69665398,59903.0,59898.0,0.001644]
[1726434074255,2.03785886,59903.0,59898.0,0.001644]
[1726434075102,2.03785886,59903.0,59902.0,0.0047911]
[1726434075966,2.05185886,59903.0,59902.0,0.0047911]
[1726434076246,2.22309907,59903.0,59902.0,0.0047911]
[1726434076515,2.23709907,59903.0,59902.0,0.0047911]
[1726434078757,2.26329081,59903.0,59902.0,0.0047911]
[1726434079146,2.42329081,59903.0,59902.0,0.0047911]
[1726434079802,2.54683908,59903.0,59902.0,0.0047911]
[1726434080273,2.39909907,59903.0,59902.0,0.0047911]
[1726434080497,2.39176719,59903.0,59902.0,0.0047911]
[1726434081847,2.9738802,59903.0,59902.0,0.0047911]
[1726434082063,1.694527,59899.0,59898.0,0.001644]
[1726434082287,2.19262598,59899.0,59898.0,0.001644]
[1726434082532,2.29112598,59899.0,59898.0,0.001644]
[1726434082994,2.29403526,59899.0,59898.0,0.001644]
[1726434083901,1.200807,59890.0,59884.0,0.0047901]
[1726434084131,0.258975,59889.0,59884.0,0.0047901]
[1726434084350,1.73506129,59889.0,59884.0,0.0047901]
[1726434084560,2.06901229,59889.0,59884.0,0.0047901]
[1726434084805,2.24884043,59889.0,59884.0,0.0047901]
[1726434085022,2.25068599,59889.0,59884.0,0.0047901]
[1726434085524,2.25068599,59889.0,59867.0,0.099223]
[1726434085525,1.451642,59878.0,59867.0,0.000823]
[1726434085730,1.73069781,59878.0,59867.0,0.000823]
[1726434085962,2.03317493,59878.0,59867.0,0.000823]
[1726434086635,2.04717493,59878.0,59867.0,0.000823]
[1726434087108,2.03317493,59878.0,59867.0,0.000823]
[1726434087354,2.03816879,59878.0,59867.0,0.000823]
[1726434087569,2.05216879,59878.0,59867.0,0.000823]
[1726434088021,2.03816879,59878.0,59867.0,0.000823]
[1726434088452,2.06616879,59878.0,59867.0,0.000823]
[1726434089309,2.06816879,59878.0,59867.0,0.000823]
[1726434090273,2.06616879,59878.0,59867.0,0.000823]
[1726434096061,1.87972562,59878.0,59867.0,0.000823]
[1726434096272,1.41571362,59878.0,59867.0,0.000823]
[1726434096491,1.41571362,59878.0,59868.0,0.167856]
[1726434096978,1.41571362,59878.0,59868.0,0.000823]
[1726434097410,1.40171362,59878.0,59868.0,0.000823]
[1726434097611,1.38771362,59878.0,59868.0,0.000823]
[1726434097842,1.40171362,59878.0,59868.0,0.000823]
[1726434098046,1.41571362,59878.0,59868.0,0.000823]
[1726434099361,1.77972562,59878.0,59868.0,0.000823]
[1726434099765,1.78172562,59878.0,59868.0,0.000823]
[1726434100188,2.37313762,59878.0,59868.0,0.000823]
[1726434100857,2.35913762,59878.0,59868.0,0.000823]
[1726434101307,2.37313762,59878.0,59868.0,0.000823]
[1726434101957,2.39934251,59878.0,59868.0,0.000823]
[1726434103345,2.40225249,59878.0,59868.0,0.000823]
[1726434104699,2.30285249,59878.0,59868.0,0.000823]
[1726434104907,2.42638568,59878.0,59868.0,0.000823]
[1726434105107,2.42838568,59878.0,59868.0,0.000823]
[1726434105556,2.40218079,59878.0,59868.0,0.000823]
[1726434105786,0.835155,59869.0,59868.0,0.00068794]
[1726434106003,1.00639081,59869.0,59868.0,0.00068794]
[1726434106232,1.01600735,59869.0,59868.0,0.00068794]
[1726434107662,1.02400735,59869.0,59868.0,0.00068794]
[1726434107898,0.83517,59868.0,59867.0,0.00081287]
[1726434108136,1.00640581,59868.0,59867.0,0.00081287]
[1726434108900,0.67233781,59868.0,59867.0,0.00081287]
[1726434109151,0.79447822,59868.0,59867.0,0.00081287]
[1726434109635,1.12854622,59868.0,59867.0,0.00081287]
[1726434109871,1.13323547,59868.0,59867.0,0.00081287]
[1726434110420,0.80716747,59868.0,59867.0,0.00081287]
[1726434113559,1.14123547,59868.0,59867.0,0.00081287]
[1726434113797,0.80716747,59868.0,59867.0,0.00081287]
[1726434114779,1.14123547,59868.0,59867.0,0.00081287]
[1726434115019,1.34165547,59868.0,59867.0,0.00081287]
[1726434115985,1.00758747,59868.0,59867.0,0.00081287]
[1726434116463,1.34165547,59868.0,59867.0,0.00081287]
[1726434117193,1.34656489,59868.0,59867.0,0.00081287]
[1726434117431,1.01249689,59868.0,59867.0,0.00081287]
[1726434117954,1.34656489,59868.0,59867.0,0.00081287]
[1726434118190,1.01249689,59868.0,59867.0,0.00081287]
[1726434118672,1.34656489,59868.0,59867.0,0.00081287]
[1726434119185,1.01249689,59868.0,59867.0,0.00081287]
[1726434122278,0.67842889,59868.0,59867.0,0.00081287]
[1726434122529,0.67842889,59868.0,59867.0,0.24564887]
[1726434122530,0.22501867,59868.0,59867.0,0.24564887]
[1726434122771,0.22501867,59868.0,59867.0,0.33854887]
[1726434123000,0.02501867,59868.0,59867.0,0.27624887]
[1726434123245,0.02093978,59868.0,59867.0,0.27624887]
[1726434123479,0.01603036,59868.0,59867.0,0.27624887]
[1726434123737,0.02003036,59868.0,59867.0,0.27624887]
[1726434124208,0.01250925,59868.0,59867.0,0.27624887]
[1726434124688,0.01350925,59868.0,59867.0,0.27624887]
[1726434125158,0.01550925,59868.0,59867.0,0.27624887]
[1726434125401,0.01350925,59868.0,59867.0,0.27624887]
[1726434125861,0.01350925,59868.0,59867.0,0.27724887]
[1726434126082,0.01250925,59868.0,59867.0,0.27724887]
[1726434126620,0.01250925,59868.0,59867.0,0.27624887]
[1726434127086,0.01250925,59868.0,59867.0,0.27824887]
[1726434127620,0.01250925,59868.0,59867.0,0.08061287]
[1726434128095,0.18483621,59868.0,59867.0,0.07961287]
[1726434128327,0.01780221,59868.0,59867.0,0.07961287]
[1726434128559,0.01780221,59868.0,59867.0,0.08161287]
[1726434129700,0.01780221,59868.0,59867.0,0.24864887]
[1726434132268,0.01780221,59868.0,59867.0,0.08161287]
[1726434132922,0.01780221,59868.0,59867.0,0.24864887]
[1726434133374,0.01250925,59868.0,59867.0,0.08161287]
[1726434133889,0.0213617,59868.0,59867.0,0.08161287]
[1726434134617,0.1883957,59868.0,59867.0,0.08161287]
[1726434134831,0.1900417,59868.0,59867.0,0.08161287]
[1726434135300,0.1900417,59868.0,59867.0,0.00381287]
[1726434135788,0.74775558,59868.0,59867.0,0.00381287]
[1726434136002,0.74775558,59868.0,59867.0,0.00281287]
[1726434136003,0.69534551,59868.0,59867.0,0.00281287]
[1726434136248,0.69534551,59868.0,59867.0,0.00181287]
[1726434136470,0.70134551,59868.0,59867.0,0.00181287]
[1726434136731,0.70534551,59868.0,59867.0,0.00081287]
[1726434136954,0.69934551,59868.0,59867.0,0.00081287]
[1726434137177,0.8203642,59868.0,59867.0,0.00181287]
[1726434137405,1.1544322,59868.0,59867.0,0.00181287]
[1726434138564,1.5879002,59868.0,59867.0,0.00181287]
[1726434139488,1.6179002,59868.0,59867.0,0.00181287]
[1726434143891,1.66775513,59868.0,59867.0,0.00181287]
[1726434144103,1.6179002,59868.0,59867.0,0.00181287]
[1726434144747,1.6179002,59868.0,59867.0,0.00111787]
[1726434145220,1.66775513,59868.0,59867.0,0.00111787]
[1726434145650,1.50188151,59868.0,59867.0,0.00111787]
[1726434149044,1.16781351,59868.0,59867.0,0.00111787]
[1726434149232,0.70434551,59868.0,59867.0,0.00111787]
[1726434152308,1.03841351,59868.0,59867.0,0.00111787]
[1726434154324,1.03841351,59868.0,59867.0,0.00042657]
[1726434154794,1.09263105,59868.0,59867.0,0.00042657]
[1726434155253,1.03841351,59868.0,59867.0,0.00042657]
[1726434156374,0.70434551,59868.0,59867.0,0.00042657]
[1726434157755,1.03841351,59868.0,59867.0,0.00042657]
[1726434158241,1.03841351,59868.0,59867.0,0.00124957]
[1726434160167,1.16141351,59868.0,59867.0,0.00124957]
[1726434160620,1.2902333,59868.0,59867.0,0.00124957]
[1726434160834,1.6243013,59868.0,59867.0,0.00124957]
[1726434161989,1.81757579,59868.0,59867.0,0.00124957]
[1726434162231,1.48350779,59868.0,59867.0,0.00124957]
[1726434163343,1.81757579,59868.0,59867.0,0.00124957]
[1726434166541,1.81609558,59868.0,59867.0,0.00124957]
[1726434170232,1.8423024,59868.0,59867.0,0.00124957]
[1726434170689,1.81609558,59868.0,59867.0,0.00124957]
[1726434175941,1.86585699,59868.0,59867.0,0.00124957]
[1726434176398,1.81609558,59868.0,59867.0,0.00124957]
[1726434176634,1.86585699,59868.0,59867.0,0.00124957]
[1726434178385,1.86585699,59868.0,59867.0,0.00057517]
[1726434178586,1.81609558,59868.0,59867.0,0.00057517]
[1726434180648,1.8907377,59868.0,59867.0,0.00057517]
[1726434181273,1.81609558,59868.0,59867.0,0.00057517]
[1726434181475,1.8907377,59868.0,59867.0,0.00057517]
[1726434182700,2.31216358,59868.0,59867.0,0.00057517]
[1726434182936,1.027182,59867.0,59866.0,0.0039681]
[1726434183186,2.05031327,59867.0,59866.0,0.0039681]
[1726434183386,0.867252,59862.0,59861.0,0.000823]
[1726434183587,1.24427155,59862.0,59861.0,0.000823]
[1726434183796,1.39096746,59862.0,59861.0,0.000823]
[1726434184005,1.32458945,59862.0,59861.0,0.000823]
[1726434184220,1.42424745,59862.0,59861.0,0.000823]
[1726434184423,1.75634845,59862.0,59861.0,0.000823]
[1726434184834,1.77534845,59862.0,59861.0,0.002823]
[1726434185268,1.77334845,59862.0,59861.0,0.002823]
[1726434186397,1.67469045,59862.0,59861.0,0.002823]